bitfinex/quotes_BTCUSD_20241013
["timestamp","ask_amount","ask_price","bid_price","bid_amount"]
[1728788483922,0.01570373,62991.0,62990.0,0.91129685]
[1728788484346,0.01570373,62991.0,62990.0,0.92529685]
[1728788484783,0.01562435,62991.0,62990.0,0.8164022]
[1728788485007,0.01562435,62991.0,62990.0,0.8304022]
[1728788486944,0.00074062,62991.0,62990.0,0.8304022]
[1728788487167,0.01562502,62991.0,62990.0,0.83040234]
[1728788488266,0.01562502,62991.0,62990.0,0.83044594]
[1728788490146,0.01562502,62991.0,62990.0,0.81644594]
[1728788490353,0.01562502,62991.0,62990.0,0.88764495]
[1728788490561,0.01562502,62991.0,62990.0,0.81644594]
[1728788490793,0.01562609,62991.0,62990.0,0.90164807]
[1728788491014,0.01562609,62991.0,62990.0,0.64125497]
[1728788491239,0.01562609,62991.0,62990.0,0.68872628]
[1728788491469,0.01562609,62991.0,62990.0,0.65525497]
[1728788493616,0.21164724,62991.0,62990.0,0.70273189]
[1728788495085,0.21164724,62991.0,62990.0,0.65525497]
[1728788499015,0.21164724,62991.0,62990.0,0.65423785]
[1728788499259,0.21164724,62991.0,62990.0,0.65587785]
[1728788502978,0.21164724,62991.0,62990.0,0.52207512]
[1728788506390,0.21167194,62991.0,62990.0,0.52207548]
[1728788507843,0.21167194,62991.0,62990.0,0.49282234]
[1728788508073,0.21167194,62991.0,62990.0,0.220265]
[1728788509056,0.21167194,62991.0,62990.0,0.192265]
[1728788509521,0.21167194,62991.0,62990.0,0.220265]
[1728788509753,0.21167194,62991.0,62990.0,0.206265]
[1728788510227,0.21166814,62991.0,62990.0,0.220265]
[1728788510728,0.21166814,62991.0,62990.0,0.206265]
[1728788510959,0.21166814,62991.0,62990.0,0.220265]
[1728788511189,0.21166814,62991.0,62990.0,0.206265]
[1728788511421,0.21166814,62991.0,62990.0,0.192265]
[1728788511663,0.21166814,62991.0,62990.0,0.206265]
[1728788511903,0.21166814,62991.0,62990.0,0.220265]
[1728788512378,0.21166814,62991.0,62990.0,0.206265]
[1728788512615,0.21166814,62991.0,62990.0,0.220265]
[1728788512855,0.21166814,62991.0,62990.0,0.30650952]
[1728788513338,0.21166814,62991.0,62990.0,0.220265]
[1728788514357,0.17294062,62991.0,62990.0,0.220265]
[1728788514606,0.21165804,62991.0,62990.0,0.220265]
[1728788514850,0.23548311,62991.0,62990.0,0.220265]
[1728788516808,0.22059106,62991.0,62990.0,0.220265]
[1728788517012,0.23548086,62991.0,62990.0,0.220265]
[1728788517223,0.21165717,62991.0,62990.0,0.220265]
[1728788517466,0.17294062,62991.0,62990.0,0.220265]
[1728788517876,0.21165542,62991.0,62990.0,0.220265]
[1728788519048,0.17294062,62991.0,62990.0,0.220265]
[1728788519248,0.21165532,62991.0,62990.0,0.220265]
[1728788521742,0.17294062,62991.0,62990.0,0.220265]
[1728788521941,0.21165879,62991.0,62990.0,0.220265]
[1728788524428,0.21165879,62991.0,62990.0,0.46773353]
[1728788524680,0.03945879,62991.0,62990.0,0.46773353]
[1728788525188,0.00074062,62991.0,62990.0,0.46773353]
[1728788525446,0.03946039,62991.0,62990.0,0.46773353]
[1728788525920,0.03946209,62991.0,62990.0,0.46773353]
[1728788526645,0.03946209,62991.0,62990.0,0.60272006]
[1728788526893,0.03946209,62991.0,62990.0,0.80159141]
[1728788527132,0.03946209,62991.0,62990.0,0.79662006]
[1728788527133,0.01563349,62991.0,62990.0,0.79662006]
[1728788527382,0.01563349,62991.0,62990.0,0.97177004]
[1728788528399,0.01563349,62991.0,62990.0,0.94377004]
[1728788528896,0.01563349,62991.0,62990.0,0.97177004]
[1728788529160,0.01563349,62991.0,62990.0,0.95777004]
[1728788529409,0.01563349,62991.0,62990.0,0.97177004]
[1728788529910,0.01563349,62991.0,62990.0,0.95777004]
[1728788530160,0.01563349,62991.0,62990.0,0.95776752]
[1728788530858,0.01563349,62991.0,62990.0,0.97176752]
[1728788531808,0.01562203,62991.0,62990.0,0.97176752]
[1728788532039,0.01562203,62991.0,62990.0,1.04292341]
[1728788532279,0.01562203,62991.0,62990.0,0.97176752]
[1728788532506,0.00074062,62991.0,62990.0,1.06666223]
[1728788535011,0.00074062,62991.0,62990.0,1.06657034]
[1728788535645,0.00074062,62991.0,62990.0,0.97170792]
[1728788537166,0.00074062,62991.0,62990.0,0.97806892]
[1728788538024,6.2e-07,62991.0,62990.0,0.97806892]
[1728788538244,6.2e-07,62991.0,62990.0,0.98006892]
[1728788538689,6.2e-07,62991.0,62990.0,0.97806892]
[1728788540743,6.2e-07,62991.0,62990.0,1.09659024]
[1728788540953,6.2e-07,62991.0,62990.0,1.09650282]
[1728788543530,6.2e-07,62991.0,62990.0,0.97798299]
[1728788545772,6.2e-07,62991.0,62990.0,1.07275524]
[1728788545983,6.2e-07,62991.0,62990.0,0.97798299]
[1728788546198,6.2e-07,62991.0,62990.0,1.0727506]
[1728788551362,6.2e-07,62991.0,62990.0,0.97798299]
[1728788553060,6.2e-07,62991.0,62990.0,1.04903077]
[1728788553303,6.2e-07,62991.0,62990.0,0.97798299]
[1728788557363,6.2e-07,62991.0,62990.0,1.0727506]
[1728788558919,6.2e-07,62991.0,62990.0,1.0725764]
[1728788562244,6.2e-07,62991.0,62990.0,0.97783871]
[1728788563333,6.2e-07,62991.0,62990.0,1.09626082]
[1728788564414,6.2e-07,62991.0,62990.0,1.0964429]
[1728788565506,6.2e-07,62991.0,62990.0,1.0824429]
[1728788565721,6.2e-07,62991.0,62990.0,1.0684429]
[1728788565937,6.2e-07,62991.0,62990.0,1.0964429]
[1728788566149,6.2e-07,62991.0,62990.0,1.0025429]
[1728788566374,6.2e-07,62991.0,62990.0,0.9745429]
[1728788566586,6.2e-07,62991.0,62990.0,0.88404727]
[1728788566810,6.2e-07,62991.0,62990.0,1.00256381]
[1728788567059,6.2e-07,62991.0,62990.0,0.88404727]
[1728788567332,0.01490755,62991.0,62990.0,0.88404727]
[1728788567567,0.01490755,62991.0,62990.0,1.00256381]
[1728788568765,0.01490755,62991.0,62990.0,0.88415161]
[1728788569549,0.01490755,62991.0,62990.0,1.00272162]
[1728788569793,0.01490755,62991.0,62990.0,0.88415161]
[1728788574285,6.2e-07,62991.0,62990.0,0.88415161]
[1728788574751,0.0149088,62991.0,62990.0,0.88415161]
[1728788578044,0.01490781,62991.0,62990.0,0.88415161]
[1728788581128,0.01490773,62991.0,62990.0,0.88415161]
[1728788581551,0.01490773,62991.0,62990.0,1.02643117]
[1728788584406,0.01490739,62991.0,62990.0,1.02643117]
[1728788585144,0.01474843,62991.0,62990.0,1.02643117]
[1728788586642,0.01474843,62991.0,62990.0,1.02712133]
[1728788587880,0.07632,62997.0,62996.0,0.19061]
[1728788588085,0.12402162,62997.0,62996.0,0.8599144]
[1728788588291,0.10017081,62997.0,62996.0,0.8599144]
[1728788588709,0.10017081,62997.0,62996.0,0.74107902]
[1728788588916,0.10017081,62997.0,62996.0,0.8599144]
[1728788589117,0.10017081,62997.0,62996.0,0.8879144]
[1728788590144,0.10017081,62997.0,62996.0,0.76907902]
[1728788590764,0.10017081,62997.0,62996.0,0.75507902]
[1728788590945,0.10017081,62997.0,62996.0,0.8879144]
[1728788591119,0.10017081,62997.0,62996.0,0.8739144]
[1728788591727,0.10017081,62997.0,62996.0,0.8599144]
[1728788591977,0.10017081,62997.0,62996.0,0.8879144]
[1728788592175,0.10017081,62997.0,62996.0,0.76907902]
[1728788592385,0.10017081,62997.0,62996.0,0.87394117]
[1728788593930,0.10017081,62997.0,62996.0,0.88794117]
[1728788594137,0.10017081,62997.0,62996.0,0.87394117]
[1728788594541,0.10017081,62997.0,62996.0,0.90194117]
[1728788595319,0.1001734,62997.0,62996.0,0.90194117]
[1728788595460,0.0246734,62997.0,62996.0,0.90194117]
[1728788595670,0.0246734,62997.0,62996.0,0.90933871]
[1728788596275,0.0246734,62997.0,62996.0,0.90943791]
[1728788596478,0.0246734,62997.0,62996.0,0.79055836]
[1728788596683,0.0246734,62997.0,62996.0,0.80616341]
[1728788597087,0.04852166,63014.0,62998.0,0.195605]
[1728788597088,4e-07,62999.0,62998.0,0.195605]
[1728788597287,0.1788,63010.0,63006.0,0.349297]
[1728788597288,0.02384409,63009.0,63006.0,0.349297]
[1728788597492,0.0829,63010.0,63009.0,0.313577]
[1728788597856,0.0829,63010.0,63009.0,0.54610297]
[1728788598064,0.0829,63010.0,63009.0,0.83612907]
[1728788598275,0.0829,63010.0,63009.0,0.81230895]
[1728788598483,0.0829,63010.0,63009.0,0.63684434]
[1728788598697,0.0829,63010.0,63009.0,0.81218637]
[1728788598915,0.0829,63010.0,63009.0,0.82618647]
[1728788599352,0.0829,63010.0,63009.0,0.57959473]
[1728788599556,0.0829,63010.0,63009.0,0.84991006]
[1728788600176,0.0769,63010.0,63009.0,0.84002349]
[1728788601021,0.09672,63014.0,63013.0,0.290567]
[1728788601228,0.09672,63014.0,63013.0,0.45179101]
[1728788602390,0.09672,63014.0,63013.0,0.46579101]
[1728788602643,0.10272,63014.0,63013.0,0.46579101]
[1728788603305,0.18562,63014.0,63013.0,0.46579101]
[1728788603514,0.18562,63014.0,63013.0,0.55658473]
[1728788603994,0.18562,63014.0,63013.0,0.58458473]
[1728788606482,0.18562,63014.0,63013.0,0.60051897]
[1728788607143,0.20939293,63014.0,63013.0,0.60051897]
[1728788607758,0.20939293,63014.0,63013.0,0.57251897]
[1728788608173,0.20939293,63014.0,63013.0,0.200567]
[1728788609334,0.22425305,63014.0,63013.0,0.200567]
[1728788609616,0.22425305,63014.0,63013.0,0.210567]
[1728788609825,0.22425305,63014.0,63013.0,0.200567]
[1728788610268,0.22425305,63014.0,63013.0,0.211567]
[1728788614056,0.22425305,63014.0,63013.0,0.2962044]
[1728788614500,0.22425305,63014.0,63013.0,0.211567]
[1728788617087,0.18562,63014.0,63013.0,0.211567]
[1728788617317,0.22427043,63014.0,63013.0,0.211567]
[1728788619225,0.18562,63014.0,63013.0,0.211567]
[1728788619447,0.22428015,63014.0,63013.0,0.211567]
[1728788620767,0.18562,63014.0,63013.0,0.211567]
[1728788620973,0.2242838,63014.0,63013.0,0.2962044]
[1728788621160,0.22428387,63014.0,63013.0,0.2962044]
[1728788621632,0.22428387,63014.0,63013.0,0.211567]
[1728788625804,0.04548387,63014.0,63013.0,0.211567]
[1728788628087,0.00682,63014.0,63013.0,0.211567]
[1728788628292,0.04551373,63014.0,63013.0,0.211567]
[1728788630179,0.04551373,63014.0,63013.0,0.21898941]
[1728788630593,0.04551373,63014.0,63013.0,0.30453305]
[1728788635583,0.00682,63014.0,63013.0,0.30453305]
[1728788635791,0.04554503,63014.0,63013.0,0.30453305]
[1728788638256,0.00682,63014.0,63013.0,0.30453305]
[1728788640779,0.04556255,63014.0,63013.0,0.30453305]
[1728788641490,0.04556255,63014.0,63013.0,0.211567]
[1728788641715,0.15616374,63014.0,63013.0,0.211567]
[1728788641967,0.14126276,63014.0,63013.0,0.211567]
[1728788642675,0.22316276,63014.0,63013.0,0.211567]
[1728788643825,0.33514929,63014.0,63013.0,0.211567]
[1728788644037,0.33514929,63014.0,63013.0,0.05287]
[1728788644896,0.33714929,63014.0,63013.0,0.03187]
[1728788645121,0.33714929,63014.0,63012.0,0.03187]
[1728788645122,0.336297,63013.0,63012.0,0.03187]
[1728788645373,0.37503976,63013.0,63012.0,0.03187]
[1728788645603,0.1776,63012.0,63010.0,0.00164]
[1728788645859,0.48703129,63011.0,63010.0,0.00164]
[1728788646092,0.53463166,63011.0,63010.0,0.00164]
[1728788646309,0.48703129,63011.0,63010.0,0.00164]
[1728788646555,0.68797962,63011.0,63010.0,0.00164]
[1728788647249,0.68797973,63011.0,63010.0,0.00164]
[1728788648396,0.60161054,63011.0,63010.0,0.00164]
[1728788648630,0.64029434,63011.0,63010.0,0.00164]
[1728788649335,0.52830781,63011.0,63010.0,0.00164]
[1728788651048,0.3749858,63011.0,63010.0,0.00164]
[1728788651289,0.48697233,63011.0,63010.0,0.00164]
[1728788652068,0.44828853,63011.0,63010.0,0.00164]
[1728788652291,0.48693283,63011.0,63010.0,0.00164]
[1728788653229,0.3749463,63011.0,63010.0,0.00164]
[1728788654685,0.44133124,63011.0,63010.0,0.00164]
[1728788654928,0.55331777,63011.0,63010.0,0.00164]
[1728788655176,0.52953666,63011.0,63010.0,0.00164]
[1728788656931,0.53053666,63011.0,63010.0,0.00164]
[1728788657428,0.52953666,63011.0,63010.0,0.00164]
[1728788658391,0.53053666,63011.0,63010.0,0.00164]
[1728788659855,0.5305308,63011.0,63010.0,0.00164]
[1728788661607,0.5313508,63011.0,63010.0,0.00164]
[1728788663940,0.53135713,63011.0,63010.0,0.00164]
[1728788666022,0.64334366,63011.0,63010.0,0.00164]
[1728788667951,0.64335766,63011.0,63010.0,0.00164]
[1728788670221,0.66716326,63011.0,63010.0,0.00164]
[1728788671789,0.66717991,63011.0,63010.0,0.00164]
[1728788674329,0.172,63004.0,63003.0,0.158721]
[1728788674553,0.21069991,63004.0,63003.0,0.158721]
[1728788675251,0.18688458,63004.0,63003.0,0.158721]
[1728788675475,0.172,63004.0,63003.0,0.158721]
[1728788675709,0.18690801,63004.0,63003.0,0.158721]
[1728788675925,0.18690801,63004.0,63003.0,0.162721]
[1728788676143,0.18690801,63004.0,63003.0,0.167721]
[1728788677528,0.39138846,63004.0,63003.0,0.009]
[1728788677747,0.39638846,63004.0,63003.0,0.009]
[1728788677982,0.40238846,63004.0,63003.0,0.009]
[1728788678868,0.0915,63002.0,62995.0,0.158742]
[1728788679079,0.11198653,62998.0,62995.0,0.158742]
[1728788679313,0.16607088,62998.0,62993.0,0.2378819]
[1728788679558,0.01490149,62997.0,62996.0,0.16038]
[1728788680627,0.01490149,62997.0,62996.0,0.16338]
[1728788681498,0.01489721,62997.0,62996.0,0.16338]
[1728788681923,0.01489721,62997.0,62996.0,0.16038]
[1728788682131,0.01489721,62997.0,62996.0,0.16438]
[1728788682578,0.01489721,62997.0,62996.0,0.16938]
[1728788683267,0.11198653,62998.0,62996.0,0.16938]
[1728788683476,0.01489427,62997.0,62996.0,0.16938]
[1728788684366,0.01489427,62997.0,62996.0,0.16438]
[1728788685218,0.02089427,62997.0,62996.0,0.16438]
[1728788685438,0.02089427,62997.0,62996.0,0.16038]
[1728788685646,0.02089427,62997.0,62996.0,0.16438]
[1728788685846,0.04234863,62997.0,62996.0,0.16738]
[1728788686113,0.04234863,62997.0,62996.0,0.19921]
[1728788686329,0.04234863,62997.0,62996.0,0.19221]
[1728788686555,0.04234863,62997.0,62996.0,0.20121]
[1728788692109,0.04234461,62997.0,62996.0,0.20121]
[1728788694662,0.04234627,62997.0,62996.0,0.20121]
[1728788698260,0.02745436,62997.0,62996.0,0.20121]
[1728788698519,0.04234892,62997.0,62996.0,0.20121]
[1728788699381,0.04234892,62997.0,62996.0,0.04247]
[1728788700029,0.04234892,62997.0,62996.0,0.20121]
[1728788700454,0.04234892,62997.0,62996.0,0.04247]
[1728788700923,0.02089584,62997.0,62996.0,0.04247]
[1728788701181,0.02089584,62997.0,62996.0,0.20121]
[1728788706104,0.02089584,62997.0,62996.0,0.20862429]
[1728788708076,0.02089584,62997.0,62996.0,0.20462429]
[1728788708309,0.02089584,62997.0,62996.0,0.20862429]
[1728788708526,0.02089584,62997.0,62996.0,0.20362429]
[1728788709173,0.02089584,62997.0,62996.0,0.20962429]
[1728788709804,0.02089584,62997.0,62996.0,0.21662429]
[1728788710015,0.01489584,62997.0,62996.0,0.21662429]
[1728788710218,0.01489584,62997.0,62996.0,0.21262429]
[1728788711079,0.15963944,63006.0,62996.0,0.05247]
[1728788711315,0.158723,63003.0,63000.0,0.03183]
[1728788711524,0.11198653,63001.0,63000.0,0.03183]
[1728788711706,0.12688465,63001.0,63000.0,0.03183]
[1728788712175,0.11198653,63001.0,63000.0,0.03183]
[1728788712389,0.12688479,63001.0,62998.0,0.03183]
[1728788712638,0.01489826,63000.0,62998.0,0.03183]
[1728788712865,0.11198653,63001.0,62998.0,0.03183]
[1728788712866,0.01489826,62999.0,62998.0,0.03183]
[1728788713528,0.01489826,62999.0,62996.0,0.03347]
[1728788713739,0.01489826,62999.0,62998.0,0.190565]
[1728788713952,0.01489786,62999.0,62998.0,0.190565]
[1728788715235,0.01489786,62999.0,62998.0,0.195565]
[1728788715446,0.01489786,62999.0,62998.0,0.04083]
[1728788716633,0.01489786,62999.0,62998.0,0.03583]
[1728788717276,0.01489786,62999.0,62998.0,0.03883]
[1728788717739,0.01489786,62999.0,62998.0,0.03583]
[1728788717956,0.01489786,62999.0,62998.0,0.03783]
[1728788718608,0.01489786,62999.0,62998.0,0.002]
[1728788719045,0.01489786,62999.0,62998.0,0.03683]
[1728788719256,0.01489786,62999.0,62998.0,0.03847]
[1728788723253,0.01490033,62999.0,62998.0,0.03847]
[1728788724802,0.01428128,62999.0,62998.0,0.03847]
[1728788728312,0.01428128,62999.0,62998.0,0.03842651]
[1728788728969,0.28499981,62999.0,62998.0,0.00659651]
[1728788729183,0.38369981,62999.0,62998.0,0.00659651]
[1728788729411,0.47752174,62999.0,62998.0,0.00659651]
[1728788729861,0.47752174,62999.0,62998.0,0.00164]
[1728788730499,0.46324046,62999.0,62998.0,0.00164]
[1728788731128,0.53476267,62999.0,62998.0,0.00164]
[1728788731357,0.55963216,62999.0,62998.0,0.00164]
[1728788731584,0.60509648,62999.0,62998.0,0.00164]
[1728788732100,0.60509648,62999.0,62998.0,0.00264]
[1728788732331,0.60709648,62999.0,62998.0,0.00264]
[1728788732571,0.60709648,62999.0,62998.0,0.00164]
[1728788734291,0.70709648,62999.0,62998.0,0.00164]
[1728788734524,0.339437,62997.0,62996.0,0.00164]
[1728788734767,0.439437,62997.0,62996.0,0.00164]
[1728788735910,0.439437,62997.0,62996.0,0.00264]
[1728788736340,0.439437,62997.0,62996.0,0.00164]
[1728788736972,0.45430987,62997.0,62996.0,0.00264]
[1728788737212,0.61567958,62997.0,62996.0,0.00264]
[1728788738052,0.61867958,62997.0,62996.0,0.00364]
[1728788738521,0.76144275,62997.0,62996.0,0.00364]
[1728788739508,0.76144275,62997.0,62979.0,0.2378819]
[1728788739509,0.665752,62991.0,62979.0,0.2378819]
[1728788739742,1.30837243,62991.0,62979.0,0.2378819]
[1728788739981,1.42731176,62991.0,62990.0,0.00164]
[1728788740441,1.30837243,62991.0,62990.0,0.00164]
[1728788741390,1.40348091,62991.0,62990.0,0.00164]
[1728788741632,1.40948091,62991.0,62990.0,0.00264]
[1728788742319,1.33924972,62991.0,62990.0,0.00264]
[1728788742566,1.4343582,62991.0,62990.0,0.00264]
[1728788742793,1.83924972,62991.0,62990.0,0.00264]
[1728788743027,1.95818905,62991.0,62990.0,0.00264]
[1728788743476,1.83924972,62991.0,62990.0,0.00264]
[1728788743701,1.83924972,62991.0,62979.0,0.2378819]
[1728788743702,0.439462,62987.0,62979.0,0.2378819]
[1728788743947,0.77188677,62987.0,62979.0,0.2378819]
[1728788744179,0.165773,62983.0,62979.0,0.2378819]
[1728788744432,0.49009028,62983.0,62979.0,0.2378819]
[1728788744658,0.4663324,62983.0,62979.0,0.2378819]
[1728788744894,0.49121017,62983.0,62979.0,0.2378819]
[1728788745133,0.63199373,62983.0,62979.0,0.2378819]
[1728788745631,0.63199373,62983.0,62982.0,0.00364]
[1728788746093,0.63199373,62983.0,62982.0,0.00464]
[1728788746553,1.12999373,62983.0,62982.0,0.00464]
[1728788747013,1.12999373,62983.0,62982.0,0.00364]
[1728788747232,1.12999373,62983.0,62982.0,0.00164]
[1728788747442,1.10511596,62983.0,62982.0,0.00164]
[1728788748075,1.10811596,62983.0,62982.0,0.00164]
[1728788748304,1.11011596,62983.0,62982.0,0.00264]
[1728788748725,1.10811596,62983.0,62982.0,0.00264]
[1728788748939,1.11311596,62983.0,62982.0,0.00364]
[1728788750497,1.1379938,62983.0,62982.0,0.00364]
[1728788756202,1.13800331,62983.0,62982.0,0.00364]
[1728788761164,1.1380294,62983.0,62982.0,0.00364]
[1728788761392,1.1400294,62983.0,62982.0,0.00364]
[1728788763477,1.28752598,62983.0,62982.0,0.00364]
[1728788765473,1.28552598,62983.0,62982.0,0.00364]
[1728788766781,1.26064814,62983.0,62982.0,0.00364]
[1728788767416,1.21315156,62983.0,62982.0,0.00364]
[1728788769339,1.28439643,62983.0,62982.0,0.00364]
[1728788769991,1.30927512,62983.0,62982.0,0.00364]
[1728788771251,1.23803025,62983.0,62982.0,0.00364]
[1728788772269,1.33302341,62983.0,62982.0,0.00364]
[1728788772863,1.33502341,62983.0,62982.0,0.00364]
[1728788773275,1.24003025,62983.0,62982.0,0.00364]
[1728788773476,1.24003025,62983.0,62982.0,0.002091]
[1728788773894,1.22514729,62983.0,62982.0,0.002091]
[1728788774096,1.24004928,62983.0,62982.0,0.002091]
[1728788774323,1.35203581,62983.0,62982.0,0.002091]
[1728788774530,1.35203581,62983.0,62978.0,0.00164]
[1728788774531,0.007,62979.0,62978.0,0.00164]
[1728788774733,0.71391625,62979.0,62978.0,0.00164]
[1728788774931,0.71391787,62979.0,62978.0,0.00164]
[1728788775137,0.67065805,62979.0,62978.0,0.00164]
[1728788776390,0.163803,62971.0,62970.0,0.000983]
[1728788776601,0.7253402,62971.0,62970.0,0.000983]
[1728788776820,0.163818,62965.0,62964.0,0.03185]
[1728788777059,0.29070652,62965.0,62964.0,0.03185]
[1728788777302,0.29070652,62965.0,62963.0,0.2378819]
[1728788777303,0.15882,62964.0,62963.0,0.2378819]
[1728788777508,0.158831,62960.0,62959.0,0.03185]
[1728788777717,0.28571243,62960.0,62959.0,0.03185]
[1728788778603,0.12688143,62960.0,62955.0,0.2697319]
[1728788778815,0.11198653,62956.0,62955.0,0.2697319]
[1728788779020,0.12688143,62956.0,62955.0,0.2697319]
[1728788779448,0.12688143,62956.0,62955.0,0.03185]
[1728788779882,0.15176634,62956.0,62954.0,0.03349]
[1728788780088,0.0148949,62955.0,62954.0,0.03349]
[1728788780972,0.63687144,62956.0,62954.0,0.03349]
[1728788781182,0.01488442,62955.0,62954.0,0.03349]
[1728788781601,0.01488442,62955.0,62954.0,0.03949]
[1728788781861,0.01588442,62955.0,62954.0,0.04749]
[1728788782684,0.01588442,62955.0,62954.0,0.04149]
[1728788782880,0.09714401,62955.0,62954.0,0.04149]
[1728788783117,0.09814401,62955.0,62954.0,0.04849]
[1728788783755,0.01688442,62955.0,62954.0,0.04849]
[1728788783980,0.17572742,62955.0,62954.0,0.04849]
[1728788784200,0.17572742,62955.0,62954.0,0.01664]
[1728788784651,0.160843,62955.0,62954.0,0.01664]
[1728788784885,0.17572096,62955.0,62954.0,0.01664]
[1728788785101,0.33709067,62955.0,62954.0,0.01664]
[1728788785529,0.34209067,62955.0,62954.0,0.01664]
[1728788786189,0.33709067,62955.0,62954.0,0.01664]
[1728788786398,0.34208466,62955.0,62954.0,0.01664]
[1728788787096,0.42138466,62955.0,62954.0,0.01664]
[1728788788435,0.42137903,62955.0,62954.0,0.01664]
[1728788789724,0.42037903,62955.0,62954.0,0.00964]
[1728788790150,0.42137903,62955.0,62954.0,0.00164]
[1728788790361,0.42337903,62955.0,62954.0,0.00164]
[1728788791432,0.51427903,62955.0,62954.0,0.00164]
[1728788791891,0.51627903,62955.0,62954.0,0.00164]
[1728788792141,0.50141271,62955.0,62954.0,0.00164]
[1728788792361,0.73639924,62955.0,62954.0,0.00164]
[1728788792596,1.08302406,62952.0,62950.0,0.00164]
[1728788792806,1.25067401,62952.0,62950.0,0.00164]
[1728788793046,1.17938624,62952.0,62950.0,0.00164]
[1728788793281,1.2744366,62952.0,62950.0,0.00164]
[1728788793700,1.2744066,62952.0,62950.0,0.00164]
[1728788793921,1.43577631,62952.0,62950.0,0.00164]
[1728788794138,1.41201945,62952.0,62950.0,0.00164]
[1728788794355,1.42101945,62952.0,62951.0,0.00264]
[1728788794573,1.35875595,62952.0,62951.0,0.00364]
[1728788795484,1.40625289,62952.0,62951.0,0.00364]
[1728788795711,1.35875595,62952.0,62951.0,0.00364]
[1728788796384,1.40625289,62952.0,62951.0,0.00364]
[1728788796623,1.35875595,62952.0,62951.0,0.00364]
[1728788800870,1.38364828,62952.0,62951.0,0.00364]
[1728788807247,1.35875595,62952.0,62951.0,0.00364]
[1728788810179,1.38364851,62952.0,62951.0,0.00364]
[1728788811106,1.88364851,62952.0,62951.0,0.00364]
[1728788812262,1.86878633,62952.0,62951.0,0.00364]
[1728788812489,1.88367211,62952.0,62951.0,0.00364]
[1728788814310,1.88367211,62952.0,62950.0,0.00164]
[1728788814311,0.105,62951.0,62950.0,0.00113646]
[1728788814525,0.3010278,62951.0,62950.0,0.00113646]
[1728788815628,0.3090278,62951.0,62950.0,0.00213646]
[1728788815849,0.36648776,62951.0,62950.0,0.00313646]
[1728788816069,0.36448776,62951.0,62950.0,0.00313646]
[1728788816255,0.35160198,62951.0,62950.0,0.00313646]
[1728788816492,0.36650201,62951.0,62950.0,0.00313646]
[1728788817347,0.31904205,62951.0,62950.0,0.00313646]
[1728788817659,0.39023199,62951.0,62950.0,0.00313646]
[1728788817878,0.36656828,62951.0,62950.0,0.00313646]
[1728788818332,0.31904205,62951.0,62950.0,0.00313646]
[1728788818794,0.39023199,62951.0,62950.0,0.00313646]
[1728788819066,0.59166197,62951.0,62950.0,0.00313646]
[1728788819304,0.51974205,62951.0,62950.0,0.00313646]
[1728788819554,0.63839195,62951.0,62950.0,0.00313646]
[1728788819793,0.51974205,62951.0,62950.0,0.00313646]
[1728788820679,0.77952259,62947.0,62946.0,0.00164]
[1728788820894,0.68243609,62947.0,62946.0,0.00164]
[1728788821118,0.88956293,62947.0,62946.0,0.00164]
[1728788821336,0.98785406,62940.0,62939.0,0.0026312]
[1728788821555,1.35684689,62940.0,62939.0,0.0026312]
[1728788821774,1.40444599,62940.0,62939.0,0.00164]
[1728788822231,1.33417058,62940.0,62939.0,0.00164]
[1728788822469,1.42933402,62940.0,62939.0,0.00164]
[1728788822695,1.33417058,62940.0,62939.0,0.00164]
[1728788822999,0.263891,62936.0,62935.0,0.00164]
[1728788823250,0.48986406,62936.0,62935.0,0.00164]
[1728788823506,0.50479414,62936.0,62935.0,0.00164]
[1728788823727,0.27882108,62936.0,62935.0,0.00164]
[1728788823957,0.57418018,62936.0,62935.0,0.00164]
[1728788824196,0.52508316,62936.0,62935.0,0.00164]
[1728788824434,0.65006835,62936.0,62935.0,0.00164]
[1728788824906,0.53505895,62936.0,62935.0,0.00164]
[1728788825134,0.63024255,62936.0,62935.0,0.00164]
[1728788826042,0.53505895,62936.0,62935.0,0.00164]
[1728788828053,0.60646155,62936.0,62935.0,0.00164]
[1728788828748,0.53505895,62936.0,62935.0,0.00164]
[1728788829954,0.63027899,62936.0,62935.0,0.00164]
[1728788830441,0.40630593,62936.0,62935.0,0.00164]
[1728788830773,0.63027899,62936.0,62935.0,0.00164]
[1728788831009,0.51829246,62936.0,62935.0,0.00164]
[1728788832931,0.12512591,62936.0,62935.0,0.10154]
[1728788833202,0.07253591,62936.0,62935.0,0.17934]
[1728788833443,0.02490587,62936.0,62935.0,0.17934]
[1728788833923,0.02490587,62936.0,62935.0,0.338234]
[1728788834164,0.02490587,62936.0,62935.0,0.370084]
[1728788834698,0.02090587,62936.0,62935.0,0.370084]
[1728788834933,0.01690587,62936.0,62935.0,0.370084]
[1728788835165,0.02290587,62936.0,62935.0,0.370084]
[1728788835639,0.02390587,62936.0,62935.0,0.370084]
[1728788836369,0.02388953,62936.0,62935.0,0.370084]
[1728788836625,0.01788953,62936.0,62935.0,0.370084]
[1728788836869,0.01788953,62936.0,62935.0,0.374084]
[1728788839954,0.01788741,62936.0,62935.0,0.374084]
[1728788842686,0.01788741,62936.0,62935.0,0.49910489]
[1728788842909,0.01788741,62936.0,62935.0,0.374084]
[1728788843594,0.01788462,62936.0,62935.0,0.374084]
[1728788844951,0.01783695,62936.0,62935.0,0.374084]
[1728788850485,0.01783695,62936.0,62935.0,0.370084]
[1728788850964,0.01783162,62936.0,62935.0,0.374084]
[1728788851430,0.01783162,62936.0,62935.0,0.370084]
[1728788851650,0.01487929,62936.0,62935.0,0.370084]
[1728788851877,0.01687929,62936.0,62935.0,0.375084]
[1728788852371,0.01687929,62936.0,62935.0,0.50020489]
[1728788852608,0.01787929,62936.0,62935.0,0.375084]
[1728788854513,0.003,62936.0,62935.0,0.375084]
[1728788854762,0.01788357,62936.0,62935.0,0.375084]
[1728788860400,0.01788357,62936.0,62935.0,0.3800601]
[1728788862014,0.01790094,62936.0,62935.0,0.375084]
[1728788862248,0.003,62936.0,62935.0,0.38006008]
[1728788862505,0.003,62936.0,62935.0,0.51709857]
[1728788862746,0.01790094,62936.0,62935.0,0.51709857]
[1728788865763,0.01590094,62936.0,62935.0,0.51212249]
[1728788865986,0.01691006,62936.0,62935.0,0.51709856]
[1728788866214,0.01591006,62936.0,62935.0,0.51209856]
[1728788866430,0.01591006,62936.0,62935.0,0.52009856]
[1728788866873,0.01591006,62936.0,62935.0,0.52006027]
[1728788867100,0.01491006,62936.0,62935.0,0.68128428]
[1728788867323,0.01591006,62936.0,62935.0,0.69528428]
[1728788867548,0.01591006,62936.0,62935.0,0.6893465]